fUSD/lending_fUSD_20240623
["ID","MTS","AMOUNT","RATE_DAILY","PERIOD"]
[330195728,1719107444733,-500.0,0.00020999,2]
[330195729,1719107444742,-500.0,0.00020999,2]
[330195730,1719107444751,-331.23044038,0.00020999,2]
[330195731,1719107444760,-500.0,0.00020999,2]
[330195732,1719107444769,-425.19738305,0.00020999,2]
[330195733,1719107444779,-500.0,0.00020999,2]
[330195734,1719107444789,-500.0,0.00020999,2]
[330195735,1719107444799,-500.0,0.00020999,2]
[330195736,1719107444810,-500.0,0.00020999,2]
[330195737,1719107444820,-449.90468467,0.00020999,2]
[330195738,1719107444831,-500.0,0.00020999,2]
[330195739,1719107444841,-500.0,0.00020999,2]
[330195740,1719107444852,-500.0,0.00020999,2]
[330195741,1719107444861,-229.92130579,0.00020999,2]
[330195742,1719107444871,-500.0,0.00020999,2]
[330195743,1719107444880,-500.0,0.00020999,2]
[330195744,1719107444890,-500.0,0.00020999,2]
[330195745,1719107444901,-500.0,0.00020999,2]
[330195746,1719107444910,-500.0,0.00020999,2]
[330195747,1719107444919,-500.0,0.00020999,2]
[330195748,1719107444929,-500.0,0.00020999,2]
[330195749,1719107444939,-500.0,0.00020999,2]
[330195750,1719107444948,-500.0,0.00020999,2]
[330195751,1719107444957,-500.0,0.00020999,2]
[330195752,1719107444966,-500.0,0.00020999,2]
[330195753,1719107444976,-500.0,0.00020999,2]
[330195754,1719107444987,-500.0,0.00020999,2]
[330195755,1719107444997,-500.0,0.00020999,2]
[330195756,1719107445008,-500.0,0.00020999,2]
[330195757,1719107445017,-500.0,0.00020999,2]
[330195758,1719107445029,-500.0,0.00020999,2]
[330195759,1719107445038,-393.97455171,0.00021,2]
[330195760,1719107445049,-236.38473102,0.00021,2]
[330195761,1719107445059,-157.58982068,0.00021,2]
[330195762,1719107445067,-21368.66261527,0.00021,7]
[330195763,1719107445077,-6199.63845944,0.00021,4]
[330195764,1719107445095,-1307.62615292,0.00021,4]
[330195765,1719107445210,-181194.21629369,0.00021,4]
[330195766,1719107445221,-4422.11782378,0.00021,4]
[330195771,1719107446176,-654.24,0.00021,4]
[330195773,1719107870411,500.55771782,0.00025,30]
[330195774,1719108277443,1095.95990994,0.00024645,120]
[330195786,1719108632456,-551.24148495,0.0001767,2]
[330195788,1719108632474,-81.27851505,0.0001767,2]
[330195789,1719108632483,-196.48,0.00019029,2]
[330195791,1719108632492,-21.93148505,0.00019034,2]
[330195792,1719108632506,-1076.81030007,0.00019034,2]
[330195793,1719108632523,-152.94821488,0.00019034,2]
[330195794,1719108632532,-150.0,0.00019034,2]
[330195795,1719108632544,-300.0,0.00019048,2]
[330195796,1719108632554,-300.0,0.00019049,2]
[330195797,1719108632563,-150.0,0.00019049,2]
[330195798,1719108632573,-1000.0,0.0001905,2]
[330195799,1719108632582,-1893.26,0.00019062,2]
[330195800,1719108632593,-529.31207361,0.00019091,2]
[330195801,1719108632606,-312.94792639,0.00019091,2]
[330195802,1719108632615,-150.9,0.00019099,2]
[330195803,1719108632626,-250.0,0.00019107,2]
[330195804,1719108632636,-345.54,0.00019134,2]
[330195805,1719108632645,-250.0,0.00019178,2]
[330195806,1719108632655,-14460.69671217,0.00019274,2]
[330195807,1719108632668,-642.06328783,0.00019274,2]
[330195808,1719108632679,-2751.0,0.00019277,2]
[330195809,1719108632688,-250.0,0.00019279,2]
[330195810,1719108632697,-1667.95701217,0.00019283,2]
[330195811,1719108632708,-6055.9025272,0.00019283,2]
[330195812,1719108632726,-4556.99046063,0.00019283,2]
[330195813,1719108632735,-155.21,0.00019284,2]
[330195814,1719108632745,-200.0,0.00019339,2]
[330195815,1719108632755,-821.54,0.00019343,2]
[330195816,1719108632766,-1340.07749841,0.00019369,2]
[330195817,1719108632776,-155.21,0.00019375,2]
[330195818,1719108632787,-1076.02,0.00019423,2]
[330195819,1719108632797,-163.7,0.00019445,2]
[330195820,1719108632806,-155.21,0.00019466,2]
[330195821,1719108632816,-155.21,0.00019558,2]
[330195822,1719108632827,-179.74,0.00019609,2]
[330195823,1719108632837,-155.21,0.00019649,2]
[330195824,1719108632846,-296.43,0.00019664,2]
[330195825,1719108632857,-155.21,0.0001974,2]
[330195826,1719108632866,-155.21,0.00019832,2]
[330195827,1719108632876,-465.0,0.000199,5]
[330195828,1719108632887,-155.21,0.00019923,2]
[330195829,1719108632896,-632.52,0.00019933,2]
[330195830,1719108632906,-155.21,0.00020014,2]
[330195831,1719108632916,-155.21,0.00020106,2]
[330195832,1719108632928,-155.21,0.00020197,2]
[330195833,1719108632937,-155.21,0.00020288,2]
[330195834,1719108632947,-284.20720049,0.0002058,2]
[330195835,1719108632959,-163.7,0.00020741,2]
[330195836,1719108632975,-420.0,0.00020761,2]
[330195837,1719108632985,-150.0,0.0002079,2]
[330195838,1719108632994,-150.0,0.0002079,2]
[330195839,1719108633005,-151.50477,0.0002079,2]
[330195840,1719108633015,-258.4282,0.000208,2]
[330195841,1719108633026,-3759.2489,0.000208,2]
[330195842,1719108633037,-127.49432377,0.00020832,2]
[330195843,1719108633051,-372.50567623,0.00020832,2]
[330195844,1719108633062,-200.0,0.00020832,2]
[330195845,1719108633072,-1303.60619654,0.00020836,2]
[330195846,1719108633083,-1378.97849723,0.0002089,2]
[330195847,1719108633127,-705.61805225,0.0002089,2]
[330195848,1719108633139,-3023.9416588,0.0002089,2]
[330195849,1719108633151,-3479.25723878,0.0002089,2]
[330195850,1719108633163,-3415.57845701,0.0002089,2]
[330195851,1719108633175,-298.96499867,0.0002089,2]
[330195852,1719108633188,-2146.38,0.0002089,2]
[330195853,1719108633199,-2697.05711625,0.0002089,2]
[330195854,1719108633212,-389.84087267,0.0002089,2]
[330195855,1719108633224,-346.77021717,0.0002089,2]
[330195856,1719108633235,-306.20467746,0.0002089,2]
[330195857,1719108633246,-472.14322502,0.0002089,2]
[330195858,1719108633257,-131.01198869,0.0002089,2]
[330195859,1719108633266,-580.71683265,0.0002089,2]
[330195863,1719108638608,-412.55586859,0.00020889,2]
[330195865,1719108638617,-270.32216186,0.0002089,2]
[330195868,1719108638629,-407.68870549,0.0002089,2]
[330195869,1719108638639,-986.03289397,0.0002089,2]
[330195872,1719108638650,-13.96710603,0.0002089,2]
[330195875,1719108638660,-2500.0,0.0002089,2]
[330195878,1719108638670,-675.9885,0.00020899,2]
[330195880,1719108638679,-1963.43,0.000209,2]
[330195882,1719108638688,-693.377,0.000209,2]
[330195884,1719108638698,-212.4648,0.000209,2]
[330195886,1719108638707,-1000.0,0.000209,2]
[330195888,1719108638718,-591.99789344,0.000209,2]
[330195890,1719108638729,-3209.94494954,0.000209,2]
[330195892,1719108638741,-726.22550044,0.000209,2]
[330195894,1719108638756,-8131.36845658,0.000209,2]
[330195896,1719108638765,-197.05450067,0.000209,2]
[330195898,1719108638775,-3040.61027305,0.000209,2]
[330195900,1719108638784,-166.65424544,0.000209,2]
[330195902,1719108638794,-156.4426312,0.000209,2]
[330195904,1719108638804,-181.0,0.000209,3]
[330195906,1719108638813,-1191.7960942,0.000209,2]
[330195908,1719108638824,-265.23161586,0.000209,2]
[330195911,1719108638836,-780.19790859,0.000209,2]
[330195913,1719108638845,-335.57840691,0.000209,2]
[330195915,1719108638855,-2797.03868446,0.000209,2]
[330195917,1719108638867,-3201.30434643,0.000209,2]
[330195919,1719108638879,-2631.32730217,0.000209,2]
[330195921,1719108638888,-222.74,0.00020904,3]
[330195923,1719108638898,-566.9070967,0.00020957,7]
[330195925,1719108638907,-251.25483366,0.0002099,3]
[330195927,1719108638916,-155.23645974,0.00020999,2]
[330195929,1719108638926,-328.47826085,0.00020999,2]
[330195931,1719108638935,-326.41613898,0.00020999,2]
[330195933,1719108638944,-1000.0,0.00020999,2]
[330195935,1719108638954,-2966.6399079,0.00021,7]
[330195938,1719108638967,-5588.92623156,0.00021,7]
[330195940,1719108638980,-2128.76516817,0.00021,7]
[330195942,1719108638990,-2833.75534537,0.00021,4]
[330195992,1719108640351,-319.69602794,0.00021,4]
[330195996,1719108640930,-590.53136259,0.00021,4]
[330195997,1719108640944,-528.00824876,0.00021,4]
[330195998,1719108640955,-64654.07788165,0.00021,4]
[330195999,1719108640969,-583.2607277,0.00021,4]
[330196002,1719108643217,-1605.35180376,0.00021,4]
[330196055,1719108643772,-9431.128,0.00021,4]
[330196056,1719108643783,-2264.26216506,0.00021,4]
[330196057,1719108643795,-902.31682698,0.00021,4]
[330196058,1719108643805,-326.39455215,0.00021,4]
[330196059,1719108643816,-1165.39763693,0.00021,4]
[330196060,1719108643827,-191699.7268347,0.00021,4]
[330196061,1719108643838,-451.5,0.00021,4]
[330196062,1719108643850,-901.13875665,0.00021,4]
[330196063,1719108643862,-370.113,0.00021,4]
[330196064,1719108643874,-578524.67184757,0.00021,4]
[330196067,1719108646256,-904.86546665,0.00021,4]
[330196088,1719108646743,-1026.83585991,0.00021,4]
[330196089,1719108646754,-1349.08580306,0.00021,4]
[330196090,1719108646765,-9106.30310022,0.00021,4]
[330196091,1719109132508,157.062311,0.00026,64]
[330196092,1719109137348,157.062311,0.00026,63]
[330196093,1719109142997,157.062311,0.00026,60]
[330196094,1719109461089,-2060.1443,0.00016612,2]
[330196095,1719109461114,-216.12,0.00016712,2]
[330196096,1719109708785,182.40814824,0.00016712,2]
[330196097,1719109802800,106241.32755176,0.00014999,2]
[330196100,1719109832373,-1629.4257306,0.00014999,2]
[330196103,1719109832390,-397.56791311,0.00014999,2]
[330196107,1719109832404,-302.11780374,0.00014999,2]
[330196110,1719109832417,-997.8724334,0.00014999,2]
[330196114,1719109832431,-7885.91948571,0.00014999,2]
[330196117,1719109832445,-642.3977412,0.00014999,2]
[330196129,1719109832646,-9842.085779,0.00014999,2]
[330196131,1719109832661,-4866.61354802,0.00014999,2]
[330196134,1719109832674,-456.76620795,0.00014999,2]
[330196136,1719109832686,-956.69375819,0.00014999,2]
[330196138,1719109832700,-1074.32,0.00014999,2]
[330196141,1719109832714,-935.25814264,0.00014999,2]
[330196143,1719109832729,-5692.61884254,0.00014999,2]
[330196159,1719109838368,-219682.75623724,0.00014999,2]
[330196163,1719109838673,-70475.15818519,0.00014999,2]
[330196164,1719109838686,-254.59639798,0.00014999,2]
[330196165,1719109838699,-659.75132017,0.00014999,2]
[330196166,1719109838712,-32634.13552709,0.00014999,2]
[330196167,1719109838725,-4108.88935476,0.00014999,2]
[330196169,1719109840501,-713.5,0.00017415,2]
[330196172,1719109840513,-6204.52583836,0.00019,2]
[330196174,1719109840525,-157.8,0.00019078,2]
[330196175,1719109840541,-750.0,0.000191,3]
[330196176,1719109840553,-2995.0,0.000191,3]
[330196177,1719109840565,-1340.07749841,0.0001911,2]
[330196178,1719109840576,-500.0,0.00019178,2]
[330196179,1719109840588,-400.46725654,0.00019178,2]
[330196180,1719109840601,-500.0,0.00019178,2]
[330196181,1719109840613,-500.0,0.00019178,2]
[330196182,1719109840625,-491.66467979,0.00019178,2]
[330196183,1719109840638,-500.0,0.00019178,2]
[330196184,1719109840649,-494.47779649,0.00019178,2]
[330196185,1719109840661,-500.0,0.00019178,2]
[330196186,1719109840674,-247.76903398,0.00019178,2]
[330196187,1719109840685,-500.0,0.00019178,2]
[330196188,1719109840697,-327.76718719,0.00019178,2]
[330196189,1719109840709,-4103.25,0.00019178,2]
[330196190,1719109840720,-250.0,0.00019178,2]
[330196191,1719109840731,-250.0,0.00019192,2]
[330196192,1719109840743,-800.0,0.00019193,2]
[330196193,1719109840754,-6204.52583832,0.00019211,2]
[330196194,1719109840766,-10000.0,0.00019219,2]
[330196195,1719109840777,-6522.91089882,0.00019385,2]
[330196196,1719109840793,-499.9996419,0.00019385,2]
[330196197,1719109840863,-3403.99439998,0.00019385,2]
[330196198,1719109840880,-6668.21003576,0.00019385,2]
[330196199,1719109840893,-259.02851092,0.00019385,2]
[330196200,1719109840911,-5376.97651262,0.00019385,2]
[330196201,1719109840923,-410.77,0.00019385,2]
[330196202,1719109840934,-913.39,0.00019391,2]
[330196203,1719109840948,-9999.99,0.00019391,2]
[330196204,1719109840960,-6204.52583832,0.00019422,2]
[330196205,1719109840971,-191.33,0.00019442,2]
[330196206,1719109840983,-3205.21,0.00019459,2]
[330196207,1719109840994,-6204.52583832,0.00019633,2]
[330196208,1719109841004,-200.0,0.00019644,2]
[330196209,1719109841015,-713.5,0.00019679,2]
[330196210,1719109841026,-168.86,0.00019702,2]
[330196211,1719109841039,-5927.7,0.00019726,2]
[330196212,1719109841049,-6204.52583832,0.00019844,2]
[330196213,1719109841061,-6204.52583832,0.00020056,2]
[330196214,1719109841071,-167.0,0.00020138,2]
[330196215,1719109841082,-849.48747099,0.00020191,2]
[330196216,1719109841092,-539.61,0.00020192,2]
[330196217,1719109841103,-423.67,0.00020192,2]
[330196218,1719109841114,-150.63,0.00020192,2]
[330196219,1719109841125,-152.78,0.00020192,2]
[330196220,1719109841135,-164.6,0.00020192,2]
[330196221,1719109841146,-150.0,0.00020192,2]
[330196222,1719109841157,-354.29,0.00020192,2]
[330196223,1719109841168,-150.0,0.00020192,2]
[330196224,1719109841179,-151.52,0.00020192,2]
[330196225,1719109841190,-423.67,0.00020192,2]
[330196226,1719109841201,-150.0,0.00020192,2]
[330196227,1719109841212,-527.66,0.00020192,2]
[330196228,1719109841223,-164.6,0.00020192,2]
[330196229,1719109841235,-354.29,0.00020192,2]
[330196230,1719109841246,-150.0,0.00020192,2]
[330196231,1719109841258,-150.0,0.00020192,2]
[330196232,1719109841268,-423.67,0.00020192,2]
[330196233,1719109841281,-527.66,0.00020192,2]
[330196234,1719109841291,-150.0,0.00020192,2]
[330196235,1719109841302,-164.6,0.00020192,2]
[330196236,1719109841655,-354.29,0.00020192,2]
[330196237,1719109841682,-150.0,0.00020192,2]
[330196238,1719109841706,-150.0,0.00020192,2]
[330196239,1719109841716,-423.67,0.00020192,2]
[330196240,1719109841726,-150.0,0.00020192,2]
[330196241,1719109841735,-354.29,0.00020192,2]
[330196242,1719109841745,-164.6,0.00020192,2]
[330196243,1719109841755,-150.0,0.00020192,2]
[330196244,1719109841766,-423.67,0.00020192,2]
[330196245,1719109841776,-150.0,0.00020192,2]
[330196246,1719109841789,-150.0,0.00020192,2]
[330196247,1719109841798,-354.29,0.00020192,2]
[330196248,1719109841808,-164.6,0.00020192,2]
[330196249,1719109841819,-802.12,0.00020192,2]
[330196250,1719109841829,-300.0,0.00020192,2]
[330196251,1719109841839,-164.6,0.00020192,2]
[330196252,1719109841849,-354.29,0.00020192,2]
[330196253,1719109841860,-291.73,0.00020192,2]
[330196254,1719109841875,-164.6,0.00020192,2]
[330196255,1719109841885,-354.29,0.00020192,2]
[330196256,1719109841895,-944.02914426,0.00020257,2]
[330196257,1719109841908,-8094.61041899,0.00020257,2]
[330196258,1719109841917,-6204.52583832,0.00020267,2]
[330196259,1719109841927,-913.39,0.0002036,2]
[330196260,1719109841937,-617.0,0.00020398,2]
[330196261,1719109841948,-503.034,0.00020398,2]
[330196262,1719109841958,-819.504,0.00020398,2]
[330196263,1719109841968,-188.961,0.00020398,2]
[330196264,1719109841978,-300.0,0.00020457,2]
[330196265,1719109841988,-6204.52583832,0.00020478,2]
[330196266,1719109841997,-520.217565,0.00020548,2]
[330196267,1719109842006,-426.31080074,0.0002058,2]
[330196268,1719109842016,-155.94167811,0.00020632,2]
[330196269,1719109842026,-6204.52583832,0.00020689,2]
[330196270,1719109842039,-2921.46799,0.0002079,2]
[330196271,1719109842049,-9432.31717949,0.00020799,2]
[330196297,1719109843688,-654.02,0.00013999,2]
[330196299,1719109843700,-1798.58275583,0.00013999,2]
[330196301,1719109843712,-137184.1411422,0.00013999,2]
[330196305,1719109843724,-421.401,0.00013999,2]
[330196307,1719109843735,-767.44684922,0.00013999,2]
[330196314,1719109844063,-2529.64958046,0.00013999,2]
[330196315,1719109844075,-496.70121847,0.00013999,2]
[330196316,1719109844086,-5068.55999995,0.00013999,2]
[330196317,1719109844098,-1340.00000071,0.00013999,2]
[330196318,1719109844109,-1315.02723563,0.00013999,2]
[330196319,1719109844121,-6477.58422,0.00013999,2]
[330196320,1719109844143,-34714.66678759,0.00013999,2]
[330196321,1719109844156,-11070.42145773,0.00013999,2]
[330196322,1719109844167,-775.0,0.00013999,2]
[330196323,1719109844178,-15579.20194805,0.00013999,2]
[330196324,1719109844189,-311.24666549,0.00013999,2]
[330196325,1719109844200,-887.6525,0.00013999,2]
[330196331,1719109846695,-483.87719183,0.00013999,2]
[330196333,1719109846707,-30511.32139743,0.00013999,2]
[330196334,1719109846719,-905.72771757,0.00013999,2]
[330196336,1719109846731,-1300.0000002,0.00013999,2]
[330196337,1719109846743,-647.51,0.00013999,2]
[330196338,1719109846755,-306.21779093,0.00013999,2]
[330196339,1719109846766,-10391.97917367,0.00013999,2]
[330196340,1719109846963,-182835.94807159,0.00013999,2]
[330196341,1719109846975,-16616.07046068,0.00013999,2]
[330196342,1719109846987,-2550.53219726,0.00013999,2]
[330196343,1719109846998,-393.76878671,0.00013999,2]
[330196344,1719109847010,-254.06940966,0.00013999,2]
[330196345,1719109847021,-428.55791539,0.00013999,2]
[330196346,1719109847033,-524.35130645,0.00013999,2]
[330196347,1719109847044,-3728.44750531,0.00013999,2]
[330196348,1719109847055,-1000.83004493,0.00013999,2]
[330196349,1719109847068,-880.88,0.00013999,2]
[330196350,1719109847081,-377.28,0.00013999,2]
[330196351,1719109847092,-670.5,0.00013999,2]
[330196352,1719109847264,-2186.753,0.00013999,2]
[330196353,1719109847276,-12457.34408979,0.00013999,2]
[330196354,1719110005779,273.05707801,0.00012299,2]
[330196355,1719110005805,2790.94,0.00012299,2]
[330196356,1719110005833,790.94,0.00012299,2]
[330196357,1719110005860,33033.81405891,0.00012299,2]
[330196358,1719110005887,1273586.08649842,0.00012299,2]
[330196359,1719110005913,585085.90799337,0.00012299,2]
[330196360,1719110034889,5904.5724338,9e-05,2]
[330196362,1719110070499,14328.72565259,6.94e-05,2]
[330196363,1719110142470,244.41421826,8.412e-05,2]
[330196365,1719110219527,156.51587003,0.00010196,2]
[330196366,1719110230820,155.13745615,0.00010196,2]
[330196367,1719110385838,1053089.30312706,0.00012299,2]
[330196368,1719110422289,341035.42324874,0.00012359,2]
[330196369,1719110422315,712053.87987832,0.00012359,2]
[330196370,1719110440277,944.02914426,0.00012359,2]
[330196371,1719110762266,548659.5269292,0.00012467,2]
[330196372,1719110778296,548659.5269292,0.00012467,2]
[330196373,1719110884981,777.0,0.00012471,2]
[330196379,1719111033016,-161.67085015,0.00013799,2]
[330196381,1719111033026,-158.31422362,0.00013799,2]
[330196383,1719111033035,-150.0,0.00013899,2]
[330196385,1719111033045,-220.0,0.00013899,2]
[330196388,1719111033054,-300.0,0.00013899,2]
[330196390,1719111033063,-1763.1785,0.000139,2]
[330196393,1719111033073,-158.31422361,0.000139,2]
[330196396,1719111033082,-7020.31634794,0.000139,2]
[330196399,1719111033092,-150.0,0.00013973,2]
[330196402,1719111033101,-197.62395641,0.00013979,2]
[330196405,1719111033111,-26045.89351865,0.00013989,2]
[330196408,1719111033123,-10113.25074618,0.00013989,2]
[330196410,1719111033135,-6075.0,0.00013989,2]
[330196413,1719111033147,-700.0,0.00013989,2]
[330196425,1719111038698,-335.2370339,0.00013889,2]
[330196426,1719111038708,-3773.65232086,0.00013989,2]
[330196427,1719111038720,-4090.39546621,0.00013989,2]
[330196433,1719111041069,-72743.25437709,0.00013989,2]
[330196434,1719111041081,-667.34675804,0.00013989,2]
[330196438,1719111044053,-855.62630079,0.00013989,2]
[330196439,1719111044065,-352.72799642,0.00013989,2]
[330196440,1719111044077,-1175.26064,0.00013989,2]
[330196441,1719111044162,-10000.0,0.00013989,2]
[330196442,1719111044173,-818.84263907,0.00013989,2]
[330196443,1719111044185,-660.19,0.00013989,2]
[330196444,1719111044196,-2084.09343301,0.00013989,2]
[330196445,1719111046953,-579.40891007,0.00013989,2]
[330196446,1719111046965,-854.0,0.00013989,2]
[330196447,1719111046976,-3575.3511807,0.00013989,2]
[330196448,1719111046987,-1825.79,0.00013989,2]
[330196449,1719111047494,-4021.91980678,0.00013989,2]
[330196456,1719111178138,5400.0,0.00025,31]
[330196457,1719111218758,548659.5269292,0.00012467,2]
[330196459,1719112231857,-506.39727667,0.00013082,2]
[330196460,1719112231867,-250.0,0.00013693,2]
[330196461,1719112231876,-222.98272333,0.00013704,2]
[330196469,1719112232165,-27.01727667,0.00013704,2]
[330196470,1719112232175,-1864.93622787,0.0001384,2]
[330196471,1719112232186,-830.32377213,0.0001384,2]
[330196472,1719112232196,-3939.4096,0.00013889,2]
[330196473,1719112232205,-150.0,0.00013899,2]
[330196474,1719112232216,-150.0,0.00013899,2]
[330196475,1719112232225,-300.0,0.00013899,2]
[330196476,1719112232235,-286.6259541,0.000139,2]
[330196477,1719112232244,-214.08125678,0.000139,5]
[330196478,1719112232256,-285.91874322,0.000139,5]
[330196479,1719112232265,-1898.3477175,0.000139,2]
[330196480,1719112232276,-3419.07975764,0.000139,2]
[330196481,1719112232288,-155.69120155,0.000139,2]
[330196482,1719112232297,-768.65,0.00013914,2]
[330196483,1719112232306,-157.65117318,0.00013922,2]
[330196484,1719112232315,-2635.01188,0.00013989,2]
[330196485,1719112232328,-350.41751171,0.0001399,2]
[330196486,1719112232337,-1011.64476456,0.00013999,2]
[330196487,1719112232347,-499.99,0.00013999,2]
[330196488,1719112232356,-211.85,0.00013999,2]
[330196489,1719112232366,-7125.9956576,0.00014,2]
[330196491,1719112237976,-69098.63143523,0.00014,2]
[330196494,1719112240078,-161.45495362,0.000139,2]
[330196495,1719112240088,-47949.77831976,0.00014,2]
[330196498,1719112240509,-646.11032332,0.00014,2]
[330196499,1719112240521,-758.34089326,0.00014,2]
[330196500,1719112240533,-336.83785441,0.00014,2]
[330196501,1719112240547,-49780.43770584,0.00014,2]
[330196502,1719112240558,-4254.11158289,0.00014,2]
[330196503,1719112240570,-15752.14051684,0.00014,2]
[330196506,1719112243370,-1164.83372952,0.00014,2]
[330196507,1719112243383,-851462.40288417,0.00014,2]
[330196508,1719112243392,-1011.30048375,0.00014,2]
[330196509,1719112243402,-191.33,0.0001403,2]
[330196510,1719112243412,-155.12349349,0.00014035,2]
[330196511,1719112243422,-23870.0,0.00014036,2]
[330196512,1719112243431,-657.1,0.00014063,2]
[330196513,1719112243440,-200.0,0.00014063,2]
[330196514,1719112243449,-1487.8,0.00014178,2]
[330196515,1719112243459,-5317.42747506,0.00014536,2]
[330196516,1719112243468,-167.42712403,0.00014907,2]
[330196517,1719112243477,-155.0,0.00014968,2]
[330196518,1719112243486,-442.90279183,0.0001505,2]
[330196519,1719112243495,-507.23846889,0.00015111,2]
[330196520,1719112243504,-5317.42747506,0.00015173,2]
[330196521,1719112243514,-420.0,0.00015229,2]
[330196522,1719112243523,-172.82,0.00015306,2]
[330196523,1719112243532,-462.59648122,0.00015337,2]
[330196524,1719112243542,-468.195809,0.00015342,2]
[330196525,1719112243551,-300.0,0.00015433,2]
[330196526,1719112243560,-1321.57938699,0.00015455,2]
[330196527,1719112243569,-286.62595406,0.0001565,2]
[330196528,1719112243579,-492.72,0.00015782,2]
[330196529,1719112243588,-5317.42747506,0.00015809,2]
[330196530,1719112243599,-167.34,0.00015831,2]
[330196531,1719112243611,-807.28,0.00015878,2]
[330196532,1719112243622,-1000.0,0.000159,5]
[330196533,1719112243631,-191.33,0.00015999,2]
[330196534,1719112243641,-12747.94565031,0.000161,2]
[330196535,1719112243651,-5715.29,0.00016116,2]
[330196536,1719112243665,-468.195809,0.00016164,2]
[330196537,1719112243676,-768.65,0.00016178,2]
[330196538,1719112243686,-1000.0,0.00016205,2]
[330196539,1719112243697,-205.3,0.00016278,2]
[330196540,1719112243707,-5839.58,0.00016438,2]
[330196541,1719112243717,-5317.42747506,0.00016445,2]
[330196542,1719112243728,-167.34,0.00016484,2]
[330196543,1719112243741,-2695.26,0.0001658,2]
[330196544,1719112243750,-807.28,0.00016672,2]
[330196545,1719112243760,-587.0,0.00016686,2]
[330196546,1719112243771,-215.92,0.00016712,2]
[330196547,1719112243781,-300.0,0.00016803,2]
[330196548,1719112243792,-172.82,0.0001693,2]
[330196549,1719112243802,-468.195809,0.00016986,2]
[330196550,1719112243812,-5317.42747506,0.00017082,2]
[330196551,1719112243821,-205.3,0.00017126,2]
[330196552,1719112243833,-167.34,0.00017137,2]
[330196553,1719112243843,-286.62595406,0.000174,2]
[330196554,1719112243852,-807.28,0.00017466,2]
[330196555,1719112243862,-5317.42747506,0.00017718,2]
[330196556,1719112243872,-6318.28471312,0.00017789,2]
[330196557,1719112243884,-167.34,0.00017791,2]
[330196558,1719112243893,-468.195809,0.00017808,2]
[330196559,1719112243903,-167.0,0.00017903,2]
[330196560,1719112243912,-161.32683919,0.000181,2]
[330196561,1719112243921,-240.91312387,0.00018179,2]
[330196562,1719112243931,-788.0,0.000182,3]
[330196563,1719112243940,-4366.0,0.000182,3]
[330196564,1719112243949,-1000.0,0.00018231,2]
[330196565,1719112243958,-807.28,0.0001826,2]
[330196566,1719112243968,-823.0,0.00018282,2]
[330196567,1719112243977,-5317.42747506,0.00018355,2]
[330196568,1719112243987,-510.0,0.000184,5]
[330196569,1719112243996,-768.65,0.00018442,2]
[330196570,1719112244006,-167.34,0.00018444,2]
[330196571,1719112244015,-354.29,0.00018548,2]
[330196572,1719112244025,-156.62,0.00018548,2]
[330196573,1719112244034,-354.29,0.00018548,2]
[330196574,1719112244045,-354.29,0.00018548,2]
[330196575,1719112244054,-322.76,0.00018548,2]
[330196576,1719112244063,-172.82,0.00018555,2]
[330196577,1719112244072,-6318.28471312,0.00018567,2]
[330196578,1719112244081,-468.195809,0.0001863,2]
[330196579,1719112244091,-2635.01188,0.00018989,2]
[330196580,1719112244100,-5317.42747506,0.00018991,2]
[330196581,1719112244110,-155.08502137,0.00019,2]
[330196582,1719112244119,-155.18799624,0.00019,2]
[330196583,1719112244128,-2000.0,0.00019,2]
[330196584,1719112244138,-807.28,0.00019054,2]
[330196585,1719112244147,-1808.1,0.00019096,2]